bitfinex/quotes_ETHUSD_20250323
["timestamp","ask_amount","ask_price","bid_price","bid_amount"]
[1742705307551,6.80336681,2003.5,2003.4,0.1183223]
[1742705308207,5.54126,2003.5,2003.4,0.1183223]
[1742705309878,8.54126,2003.5,2003.4,0.1183223]
[1742705311112,8.59896884,2003.5,2003.4,0.1183223]
[1742705311612,8.54126,2003.5,2003.4,0.1183223]
[1742705311983,10.59848468,2003.5,2003.4,0.1183223]
[1742705322725,8.54126,2003.5,2003.4,0.1183223]
[1742705330117,7.99126,2003.5,2003.4,0.1183223]
[1742705332123,8.04896884,2003.5,2003.4,0.1183223]
[1742705332420,7.99126,2003.5,2003.4,0.1183223]
[1742705338631,9.25336681,2003.5,2003.4,0.1183223]
[1742705338805,7.99126,2003.5,2003.4,0.1183223]
[1742705339128,11.30554449,2003.5,2003.4,0.1183223]
[1742705340306,7.99126,2003.5,2003.4,0.1183223]
[1742705352328,3.0,2003.6,2003.4,0.1551223]
[1742705352529,7.99111,2003.6,2003.4,0.1551223]
[1742705352837,12.98234,2003.6,2003.4,0.1551223]
[1742705353246,12.9823,2003.6,2003.4,0.1551223]
[1742705353435,7.99111,2003.6,2003.4,0.1551223]
[1742705353632,12.98224,2003.6,2003.4,0.1551223]
[1742705356546,4.99126,2003.5,2003.4,0.1551223]
[1742705356727,6.31107565,2003.5,2003.4,0.1183223]
[1742705356922,9.03088538,2003.5,2003.4,0.1183223]
[1742705361359,12.08859422,2003.5,2003.4,0.1183223]
[1742705361560,12.03088538,2003.5,2003.4,0.1183223]
[1742705375990,13.29299219,2003.5,2003.4,0.1183223]
[1742705376803,12.03088538,2003.5,2003.4,0.1183223]
[1742705377983,13.29299219,2003.5,2003.4,0.1183223]
[1742705382487,13.29299219,2003.5,2003.4,2.3e-06]
[1742705389791,13.29299219,2003.5,2003.2,2.5]
[1742705389792,4.99176,2003.3,2003.2,2.5]
[1742705389995,9.73120103,2003.3,2003.2,2.5]
[1742705390393,10.33890987,2003.3,2003.2,2.5]
[1742705390592,10.28120103,2003.3,2003.2,2.5]
[1742705393185,9.48650103,2003.3,2003.2,2.5]
[1742705394517,9.85532581,2003.3,2003.2,2.5]
[1742705394713,10.84155894,2003.3,2003.2,2.5]
[1742705396714,15.10366575,2003.3,2003.2,2.5]
[1742705396918,15.89836575,2003.3,2003.2,2.5]
[1742705397609,13.29155894,2003.3,2003.2,2.5]
[1742705397816,13.84155894,2003.3,2003.2,2.5]
[1742705403528,7.24009994,2003.3,2003.2,2.5368]
[1742705404223,7.79009994,2003.3,2003.2,2.5368]
[1742705404423,10.79009994,2003.3,2003.2,2.5]
[1742705408828,12.05220675,2003.3,2003.2,2.5]
[1742705409837,10.79009994,2003.3,2003.2,2.5]
[1742705410132,13.10634431,2003.3,2003.2,2.5]
[1742705418218,7.24009994,2003.3,2003.2,2.5368]
[1742705418418,7.79009994,2003.3,2003.2,2.5368]
[1742705418754,10.79009994,2003.3,2003.2,2.5368]
[1742705422459,10.79009994,2003.3,2003.2,2.5]
[1742705423262,10.79009994,2003.3,2003.2,2.172]
[1742705427370,10.79009994,2003.3,2003.2,2.2088]
[1742705432881,10.24009994,2003.3,2003.2,2.2088]
[1742705435990,7.24009994,2003.3,2003.2,2.2088]
[1742705439987,7.24009994,2003.3,2003.2,2.172]
[1742705450782,12.44035607,2003.3,2003.2,2.172]
[1742705456609,10.79009994,2003.3,2003.2,2.172]
[1742705460729,10.24009994,2003.3,2003.2,2.172]
[1742705461103,10.24009994,2003.3,2003.2,2.2088]
[1742705461436,2.24833994,2003.3,2003.2,2.2088]
[1742705463546,3.62463994,2003.3,2003.2,2.172]
[1742705463699,13.96021158,2003.3,2003.2,2.172]
[1742705463903,13.90250274,2003.3,2003.2,2.172]
[1742705464941,0.8263,2002.9,2002.2,0.0368]
[1742705465142,1.26210681,2002.3,2002.2,0.0368]
[1742705465304,1.26210681,2002.4,2002.2,0.0368]
[1742705467144,7.10500448,2002.5,2002.2,0.0368]
[1742705470854,4.99401,2002.4,2002.2,0.0368]
[1742705471056,12.09891448,2002.5,2002.2,0.0368]
[1742705472352,7.10500448,2002.5,2002.2,0.0368]
[1742705473349,12.09897448,2002.5,2002.2,0.0368]
[1742705473654,12.09890448,2002.5,2002.2,0.0368]
[1742705474635,4.994,2002.4,2002.2,0.0368]
[1742705475736,4.99425,2002.3,2002.0,0.0368]
[1742705476066,7.10546448,2002.3,2002.0,0.0368]
[1742705476625,2.11121448,2002.3,2002.0,0.0368]
[1742705477474,7.10558448,2002.3,2002.0,0.0368]
[1742705483371,2.11121448,2002.1,2001.9,26.398]
[1742705484670,4.9946,2002.2,2001.9,26.398]
[1742705485371,4.99389,2002.5,2001.9,31.39315]
[1742705485665,5.99248981,2002.7,2002.0,0.0368]
[1742705485666,0.8135,2002.6,2002.0,0.0368]
[1742705485877,2.11121448,2002.5,2002.0,0.0368]
[1742705486468,4.99404,2002.4,2002.0,0.0368]
[1742705486770,4.99427,2002.3,2002.0,0.0368]
[1742705487170,6.2610508,2002.3,2002.0,0.0368]
[1742705488059,6.2608208,2002.4,2002.0,5.03179]
[1742705491586,11.2550408,2002.4,2002.0,5.03179]
[1742705493464,4.99428,2002.3,2002.0,0.0368]
[1742705494189,6.2608208,2002.4,2002.0,0.0368]
[1742705494593,11.2549508,2002.4,2002.0,0.0368]
[1742705494980,6.2608208,2002.4,2002.0,5.03176]
[1742705497809,4.99404,2002.4,2002.0,5.03176]
[1742705498911,6.2608208,2002.4,2002.0,5.03176]
[1742705499208,4.99404,2002.4,2002.0,5.03176]
[1742705499529,9.98828,2002.4,2002.0,0.0368]
[1742705499703,4.99404,2002.4,2002.0,0.0368]
[1742705499911,6.2608208,2002.4,2002.0,0.0368]
[1742705500573,6.2608208,2002.4,2002.0,5.03178]
[1742705501712,11.2550408,2002.4,2002.0,5.03178]
[1742705502920,6.2608208,2002.4,2002.0,5.03178]
[1742705503078,11.2549608,2002.4,2002.0,5.03178]
[1742705505742,9.98818,2002.4,2002.0,5.03178]
[1742705508325,4.99429,2002.3,2002.0,0.0368]
[1742705510439,4.99429,2002.3,2001.9,4.995]
[1742705512840,4.99289,2002.9,2002.4,4.99377]
[1742705513141,6.2592908,2003.0,2002.6,4.99339]
[1742705513443,4.99251,2003.0,2002.6,4.99339]
[1742705513738,6.2592908,2003.0,2002.6,4.99339]
[1742705514752,5.8085,2003.1,2002.7,4.99325]
[1742705515040,1.2667808,2003.0,2002.7,4.99325]
[1742705515439,1.2667808,2003.0,2002.6,4.99337]
[1742705516214,1.2667808,2003.0,2002.6,9.98672]
[1742705517137,1.2667808,2003.0,2002.6,9.98673]
[1742705517317,1.2667808,2003.0,2002.6,9.98674]
[1742705517515,1.2667808,2003.0,2002.7,4.99321]
[1742705518149,7.24208061,2003.1,2002.7,4.99321]
[1742705518517,1.2667808,2003.0,2002.6,9.98672]
[1742705520711,6.2594008,2003.0,2002.6,4.99335]
[1742705521048,6.2594008,2003.0,2002.5,10.024]
[1742705521551,1.2667808,2002.9,2002.5,10.024]
[1742705522065,1.2667808,2002.8,2002.5,0.0368]
[1742705522550,6.2598908,2002.8,2002.5,0.0368]
[1742705523120,1.2667808,2002.8,2002.5,0.0368]
[1742705524441,6.2596008,2002.9,2002.5,0.0368]
[1742705525217,1.2667808,2002.8,2002.5,0.0368]
[1742705525450,6.2598308,2002.8,2002.5,0.0368]
[1742705526022,1.2667808,2002.6,2002.3,26.403]
[1742705526251,5.80772,2002.7,2002.3,26.403]
[1742705526252,6.96806088,2002.5,2002.3,26.403]
[1742705526555,6.2606108,2002.5,2002.3,26.403]
[1742705526754,4.99383,2002.5,2002.3,26.403]
[1742705527082,6.2606108,2002.5,2002.3,26.403]
[1742705527464,1.2667808,2002.4,2002.3,26.403]
[1742705527625,2.0810808,2002.4,2002.3,26.403]
[1742705528456,7.0750808,2002.4,2002.3,26.403]
[1742705529157,5.8083,2002.4,2002.3,26.403]
[1742705529623,9.31036235,2002.4,2002.3,26.403]
[1742705529824,4.99482,2002.1,2001.8,0.0368]
[1742705530649,7.10581171,2002.2,2001.8,5.03225]
[1742705538488,4.99459,2002.2,2001.8,5.03225]
[1742705543568,7.10581171,2002.2,2001.8,5.03225]
[1742705544904,4.99488,2002.1,2001.8,0.0368]
[1742705545074,4.995,2002.0,2001.7,26.403]
[1742705545589,12.86135171,2002.1,2001.7,26.403]
[1742705545791,7.86640171,2002.1,2001.7,26.403]
[1742705545953,5.75518,2002.1,2001.7,31.39869]
[1742705546289,5.11122171,2002.2,2001.8,0.0368]
[1742705546587,10.10585171,2002.2,2001.8,5.03216]
[1742705547089,4.99443,2002.3,2001.9,4.99515]
[1742705548616,4.99443,2002.3,2001.9,4.99506]
[1742705548773,5.11122171,2002.4,2002.0,5.03172]
[1742705548974,7.10534171,2002.4,2002.0,5.03172]
[1742705549698,12.09950171,2002.4,2002.0,0.0368]
[1742705549872,13.53998735,2002.4,2002.0,0.0368]
[1742705551282,1.26682092,2002.3,2002.0,0.0368]
[1742705551791,1.26682092,2002.3,2002.0,5.03174]
[1742705552141,6.26094092,2002.4,2002.0,5.03174]
[1742705552307,6.26094092,2002.4,2002.0,10.02659]
[1742705552514,6.26094092,2002.4,2002.0,5.03165]
[1742705553017,2.02922092,2002.6,2002.0,1.30362092]
[1742705553179,7.02288092,2002.6,2002.1,4.99455]
[1742705553567,7.02288092,2002.6,2002.2,0.0368]
[1742705553887,7.02288092,2002.6,2002.2,5.03121]
[1742705554209,6.26048092,2002.6,2002.2,5.03121]
[1742705554684,1.26682092,2002.5,2002.2,5.03121]
[1742705556830,1.00102543,2002.7,2002.2,0.0368]
[1742705557029,6.26044092,2002.6,2002.2,5.03116]
[1742705557194,1.26682092,2002.5,2002.2,5.03116]
[1742705558732,1.26682092,2002.4,2002.1,4.99469]
[1742705559393,1.26682092,2002.2,2001.9,4.9952]
[1742705559722,6.26110092,2002.3,2001.9,4.9952]
[1742705560422,1.26682092,2002.2,2001.9,4.9952]
[1742705561812,1.26682092,2002.2,2002.0,4.99483]
[1742705562827,1.26682092,2002.3,2002.0,4.99483]
[1742705565541,1.26682092,2002.3,2001.9,9.99014]
[1742705569941,1.26682092,2002.3,2001.9,4.99507]
[1742705570440,1.26682092,2002.2,2001.9,4.99507]
[1742705577875,3.08335281,2002.3,2001.9,9.99012]
[1742705578353,3.08335281,2002.3,2001.9,9.99019]
[1742705578668,3.08335281,2002.3,2001.9,9.99018]
[1742705579167,8.07761281,2002.3,2001.9,4.99505]
[1742705579534,1.26682092,2002.2,2001.9,4.99505]
[1742705580272,1.26682092,2002.2,2001.9,9.99019]
[1742705580562,1.26682092,2002.2,2001.9,9.9902]
[1742705580768,1.26682092,2002.2,2001.9,4.99505]
[1742705580937,1.26682092,2002.2,2001.9,9.99019]
[1742705581334,1.26682092,2002.2,2001.9,4.99505]
[1742705582368,1.26682092,2002.2,2001.9,9.9902]
[1742705583464,1.26682092,2002.2,2001.9,4.99505]
[1742705583769,1.26682092,2002.2,2001.9,4.99117195]
[1742705584772,1.26682092,2002.2,2001.8,4.99534]
[1742705585276,1.26682092,2002.2,2001.9,4.99523]
[1742705590272,1.26682092,2002.1,2001.9,4.99523]
[1742705590574,6.26150092,2002.2,2001.7,31.40265]
[1742705590771,6.26242092,2001.8,2001.4,0.1183223]
[1742705590973,1.26682092,2001.6,2001.4,0.1183223]
[1742705591144,2.06752092,2001.7,2001.4,5.1148023]
[1742705591483,2.06752092,2001.9,2001.6,4.99598]
[1742705592348,1.26682092,2001.8,2001.5,4.99621]
[1742705593873,1.26682092,2001.8,2001.5,9.99227]
[1742705594175,2.06752092,2001.9,2001.6,4.99582]
[1742705594380,2.06752092,2001.9,2001.6,9.99171]
[1742705594542,2.06752092,2001.9,2001.6,4.99582]
[1742705595239,3.05000866,2001.9,2001.6,4.99582]
[1742705595995,1.78318774,2001.9,2001.6,4.99582]
[1742705596355,0.8007,2001.9,2001.7,4.99575]
[1742705596685,2.06252092,2002.1,2001.8,4.99548]
[1742705596984,0.7957,2002.1,2001.8,4.99548]
[1742705598287,1.80230462,2002.1,2001.8,4.99548]
[1742705598786,3.06912554,2002.1,2001.8,4.99548]
[1742705600475,1.80230462,2002.1,2001.8,4.99548]
[1742705601378,3.06912554,2002.1,2001.8,4.99548]
[1742705602212,1.26682092,2002.0,2001.8,4.99548]
[1742705602395,1.26682092,2002.0,2001.7,4.99573]
[1742705604393,8.06392554,2002.1,2001.7,4.99573]
[1742705604596,1.26682092,2002.0,2001.7,4.99573]
[1742705604885,8.06392554,2002.1,2001.7,4.99573]
[1742705605462,1.26682092,2002.0,2001.7,4.99573]
[1742705605682,1.26682092,2001.9,2001.6,4.996]
[1742705609006,0.8193,2001.8,2001.6,4.996]
[1742705609204,2.08612092,2001.8,2001.5,31.40824]
[1742705609404,7.08172092,2001.8,2001.5,26.412]
[1742705609730,5.8149,2001.8,2001.5,26.412]
[1742705610707,0.8193,2001.8,2001.5,31.40822]
[1742705613382,7.08147092,2001.9,2001.5,31.44502]
[1742705619815,7.08147092,2001.9,2001.5,5.03302]
[1742705622483,12.07695092,2001.9,2001.5,0.0368]
[1742705622784,4.99551,2001.8,2001.5,0.0368]
[1742705623621,7.08147092,2001.9,2001.5,0.0368]
[1742705625114,7.08147092,2001.9,2001.5,5.03301]
[1742705625295,6.26217092,2001.9,2001.5,5.03301]
[1742705625492,3.02362554,2002.1,2001.8,4.99538]
[1742705625819,13.01351554,2002.1,2001.7,0.0368]
[1742705625996,1.26682092,2002.0,2001.7,0.0368]
[1742705627920,6.26189092,2002.0,2001.7,0.0368]
[1742705629420,6.26189092,2002.0,2001.6,4.99585]
[1742705630523,11.25711092,2002.0,2001.6,4.99585]
[1742705630822,6.26189092,2002.0,2001.6,4.99585]
[1742705634429,11.25710092,2002.0,2001.6,4.99585]
[1742705634618,6.26189092,2002.0,2001.6,4.99585]
[1742705635600,11.25711092,2002.0,2001.5,31.44604]
[1742705636101,11.25711092,2002.0,2001.5,36.44209]
[1742705636404,11.25711092,2002.0,2001.5,31.44585]
[1742705636620,4.99532,2001.9,2001.5,31.44585]
[1742705636829,6.26214092,2001.9,2001.5,31.44585]
[1742705637129,7.01234092,2001.9,2001.5,31.44585]
[1742705637625,4.99553,2001.8,2001.5,26.4498]
[1742705637821,6.26235092,2001.8,2001.5,26.413]
[1742705638003,4.99553,2001.8,2001.5,26.413]
[1742705639027,4.99553,2001.8,2001.4,5.1148123]
[1742705642519,6.26235092,2001.8,2001.4,5.1148123]
[1742705643504,0.7832,2001.7,2001.4,5.1148123]
[1742705644305,5.77852,2001.9,2001.5,6.26296092]
[1742705644521,0.7832,2001.9,2001.5,6.26288092]
[1742705644720,0.7832,2001.9,2001.6,4.99595]
[1742705645841,2.05002092,2001.9,2001.6,4.99595]
[1742705646133,7.04532092,2001.9,2001.5,4.99606]
[1742705648237,5.7785,2001.9,2001.5,4.99606]
[1742705648903,0.7832,2001.9,2001.6,4.99596]
[1742705650029,4.99502,2002.0,2001.6,4.99583]
[1742705651842,3.05662554,2002.1,2001.6,1.26682092]
[1742705652044,3.05662554,2002.1,2001.8,4.99539]
[1742705652045,0.7832,2002.1,2001.8,4.99539]
[1742705652411,0.7832,2002.1,2001.8,9.99074]
[1742705652606,0.7832,2002.1,2001.9,4.99509]
[1742705652812,6.79919758,2002.4,2002.0,4.99481]
[1742705653118,6.79919758,2002.4,2002.0,6.26163092]
[1742705653827,6.79919758,2002.4,2002.0,4.99481]
[1742705654145,7.04413092,2002.4,2002.0,4.99481]
[1742705654950,2.05002092,2002.4,2002.0,4.99481]
[1742705655347,0.7832,2002.4,2002.1,4.99469]
[1742705659957,0.7832,2002.4,2002.0,5.03161]
[1742705660153,7.04405092,2002.4,2002.0,5.03161]
[1742705660537,7.04405092,2002.4,2002.0,4.99481]
[1742705661447,1.00948045,2002.6,2001.6,4.99599]
[1742705661448,2.07822092,2002.2,2001.7,4.99575]
[1742705661629,2.07822092,2002.2,2001.7,7.99575]
[1742705662361,7.07288092,2002.2,2001.8,4.99541]
[1742705663957,5.80606,2002.2,2001.8,4.99541]
[1742705664341,7.07288092,2002.2,2001.8,4.99541]
[1742705667869,1.26682092,2002.1,2001.8,4.99541]
[1742705668080,12.06751092,2002.2,2001.8,4.99541]
[1742705668440,7.07285092,2002.2,2001.8,4.99541]
[1742705668642,1.26682092,2002.1,2001.8,4.99541]
[1742705668841,7.96105692,2002.2,2001.8,4.99541]
[1742705670078,7.06427092,2002.1,2001.7,9.99137]
[1742705670658,5.79745,2002.1,2001.7,9.99137]
[1742705671048,5.79745,2002.1,2001.7,4.99562]
[1742705672985,0.8027,2002.1,2001.8,4.99544]
[1742705681782,0.8027,2002.1,2001.9,4.99523]
[1742705688598,1.75135804,2002.3,2002.0,4.995]
[1742705694703,3.01817896,2002.3,2002.0,4.995]
[1742705697972,3.01817896,2002.3,2002.0,4.9949]
[1742705701106,0.7556,2002.3,2002.0,4.9949]
[1742705701307,0.7705,2002.5,2002.2,4.99434]
[1742705704506,2.03732092,2002.5,2002.2,4.99434]
[1742705706582,0.7705,2002.5,2002.2,4.99434]
[1742705719696,0.7705,2002.5,2002.1,9.98924]
[1742705721136,0.7705,2002.5,2002.2,4.99447]
[1742705729865,2.03732092,2002.5,2002.2,4.99447]
[1742705730740,7.03107092,2002.5,2002.1,4.99462]
[1742705730915,7.03107092,2002.5,2002.1,9.98925]
[1742705731117,7.03107092,2002.5,2002.1,4.99462]
[1742705737959,5.76425,2002.5,2002.1,9.98916]
[1742705738165,0.7705,2002.5,2002.1,9.98916]
[1742705739260,0.7705,2002.5,2002.2,4.9945]
[1742705741334,0.7705,2002.5,2002.4,4.994]
[1742705742756,0.8255,2002.7,2002.4,4.994]
[1742705744365,5.81876,2002.7,2002.3,4.99413]
[1742705744663,5.81876,2002.7,2002.3,9.98821]
[1742705745862,0.8255,2002.7,2002.3,9.98821]
[1742705746076,0.8255,2002.7,2002.4,4.99387]
[1742705751185,2.09232092,2002.7,2002.4,4.99387]
[1742705757585,0.7862,2002.5,2002.3,4.99408]
[1742705757788,2.05302092,2002.5,2002.3,4.99408]
[1742705758252,0.7862,2002.5,2002.3,9.98823]
[1742705758457,0.7862,2002.5,2002.3,4.99408]
[1742705758684,0.7862,2002.5,2002.3,9.98823]
[1742705759076,0.7862,2002.5,2002.3,9.98822]
[1742705763917,0.7862,2002.5,2002.4,4.994]
[1742705764077,0.8158,2002.7,2002.5,9.98728]
[1742705764406,0.8158,2002.7,2002.6,4.9935]
[1742705764555,0.8158,2002.7,2002.5,9.98709]
[1742705767105,0.8158,2002.7,2002.6,4.9935]
[1742705767305,2.08262092,2002.9,2002.6,4.9935]
[1742705768212,3.10761816,2002.9,2002.6,4.9935]
[1742705768378,0.8158,2002.9,2002.6,4.9935]
[1742705768584,0.8158,2002.9,2002.7,4.99324]
[1742705768985,2.08262092,2002.9,2002.7,4.99324]
[1742705770143,2.08262092,2002.9,2002.6,9.9869]
[1742705770330,2.08262092,2002.9,2002.6,4.9934]
[1742705770529,2.08262092,2002.9,2002.6,9.9868]
[1742705770729,2.08262092,2002.9,2002.6,4.9934]
[1742705771751,2.08262092,2002.9,2002.6,9.9868]
[1742705775169,2.08262092,2002.9,2002.6,4.9934]
[1742705775468,2.08262092,2002.9,2002.6,9.98681]
[1742705776527,2.08262092,2002.9,2002.7,4.99321]
[1742705780788,0.8158,2002.9,2002.7,4.99321]
[1742705781587,2.08262092,2002.9,2002.7,4.99321]
[1742705785094,1.26682092,2002.9,2002.7,4.99321]
[1742705785285,0.99808944,2003.0,2002.7,4.99321]
[1742705785470,2.26491036,2003.0,2002.7,4.99321]
[1742705791624,2.26491036,2003.0,2002.6,4.9934]
[1742705791806,2.26491036,2003.0,2002.7,4.99324]
[1742705794520,2.26491036,2003.0,2002.7,9.98629]
[1742705794688,2.26491036,2003.0,2002.7,4.99305]
[1742705795893,0.753,2002.9,2002.7,4.99305]
[1742705797523,2.26491036,2003.0,2002.7,9.9861]
[1742705797524,0.99808944,2003.0,2002.7,9.9861]
[1742705801021,0.99808944,2003.0,2002.9,4.99276]
[1742705801196,2.01982092,2003.3,2003.0,4.99251]
[1742705803493,0.753,2003.3,2003.1,4.99223]
[1742705803705,2.01982092,2003.3,2003.1,4.99223]
[1742705803901,2.28309551,2003.4,2003.1,4.99223]
[1742705804307,1.26682092,2003.3,2003.1,4.99223]
[1742705805821,1.26682092,2003.3,2003.1,4.99216]
[1742705807225,2.28309551,2003.4,2003.1,4.99213]
[1742705808806,1.26682092,2003.3,2003.1,4.99213]
[1742705809730,2.07972092,2003.3,2003.0,4.99245]
[1742705810103,1.26682092,2003.2,2003.0,4.99245]
[1742705811846,2.07972092,2003.3,2003.0,4.99245]
[1742705818968,1.26682092,2003.2,2003.0,4.99245]
[1742705819329,1.26682092,2003.2,2003.0,9.98479]
[1742705821757,1.26682092,2003.2,2003.0,4.99234]
[1742705822453,1.26682092,2003.2,2003.0,9.98475]
[1742705822625,1.26682092,2003.2,2003.0,4.99234]
[1742705822826,2.07972092,2003.3,2003.0,4.99234]
[1742705823454,2.07972092,2003.3,2003.1,4.99226]
[1742705823662,1.26682092,2003.2,2003.1,4.99226]
[1742705824770,2.07972092,2003.3,2003.1,4.99226]
[1742705826877,1.26682092,2003.2,2003.0,4.99234]
[1742705832375,2.07972092,2003.3,2003.0,4.99234]
[1742705834977,1.26682092,2003.2,2003.0,4.99234]
[1742705835872,1.26682092,2003.2,2002.7,26.396]
[1742705835873,7.02230092,2003.1,2002.7,31.3892]
[1742705836168,2.02992092,2003.0,2002.8,4.99291]
[1742705836369,0.7631,2003.0,2002.7,36.38219]
[1742705837052,0.7631,2003.0,2002.8,4.99294]
[1742705837566,1.26583846,2003.2,2002.8,5.0296]
[1742705837770,2.02893846,2003.3,2003.0,4.99243]
[1742705838146,2.02893846,2003.3,2003.0,4.99235]
[1742705838365,1.26583846,2003.3,2003.0,4.99235]
[1742705839240,2.07873846,2003.4,2003.1,4.99226]
[1742705840093,1.26583846,2003.4,2003.1,4.99226]
[1742705840273,1.26583846,2003.3,2003.1,4.99226]
[1742705840676,1.26583846,2003.4,2003.1,4.99226]
[1742705841680,1.26544989,2003.4,2003.1,4.99226]
[1742705845887,5.26590981,2003.5,2003.2,4.99193]
[1742705847392,1.26544989,2003.4,2003.2,4.99193]
[1742705850094,1.51848288,2003.4,2003.2,4.99193]
[1742705857186,1.51848288,2003.4,2003.1,9.9844]
[1742705859966,1.51848288,2003.4,2003.2,4.99201]
[1742705864303,1.51848288,2003.4,2003.2,4.9919]
[1742705866809,1.51848288,2003.4,2003.2,9.98372]
[1742705867103,1.51848288,2003.4,2003.2,4.99182]
[1742705867490,2.5189428,2003.5,2003.2,9.98371]
[1742705868015,2.5189428,2003.5,2003.2,4.99182]
[1742705868307,1.51848288,2003.4,2003.2,4.99182]
[1742705877819,1.51848288,2003.3,2003.2,4.99182]
[1742705878019,1.00045992,2003.5,2003.2,4.99182]
[1742705878221,1.51848288,2003.4,2003.2,4.99182]
[1742705881498,1.51848288,2003.4,2003.1,4.9922]
[1742705881707,1.51848288,2003.3,2003.1,4.9922]
[1742705881909,2.29158288,2003.4,2003.1,4.9922]
[1742705882540,1.51859112,2003.3,2003.1,4.9922]
[1742705886052,2.29169112,2003.4,2003.1,4.9922]
[1742705887039,1.51857096,2003.3,2003.1,4.9922]
[1742705892730,1.51857096,2003.3,2003.1,9.9843]
[1742705894562,2.29167096,2003.4,2003.1,9.9843]
[1742705894863,2.29167096,2003.4,2003.1,4.9921]
[1742705895426,1.51857096,2003.3,2003.0,5.0293]
[1742705895630,2.33787096,2003.1,2002.9,26.395]
[1742705895964,1.51857096,2003.0,2002.9,26.395]
[1742705897732,6.51108096,2003.0,2002.9,26.395]
[1742705898663,1.51857096,2003.0,2002.9,26.395]
[1742705900567,1.51857096,2003.1,2002.9,26.395]
[1742705900739,1.51857096,2003.2,2003.0,4.99251]
[1742705901256,0.8193,2003.3,2003.0,4.99251]
[1742705901257,1.51857096,2003.1,2003.0,4.99251]
[1742705901566,1.51857096,2003.1,2002.9,31.42444]
[1742705906072,1.51857096,2003.2,2002.9,31.42444]
[1742705906970,1.51857096,2003.1,2002.9,31.42444]
[1742705907472,1.51857096,2003.1,2002.9,26.395]
[1742705907650,2.33787096,2003.0,2002.9,26.395]
[1742705908873,2.33787096,2003.0,2002.7,4.99322]
[1742705909084,1.51857096,2002.9,2002.7,4.99322]
[1742705909585,2.33787096,2003.0,2002.7,4.99322]
[1742705911570,2.33787096,2003.0,2002.7,9.9863]
[1742705911774,2.33787096,2003.0,2002.7,4.99308]
[1742705913687,2.33787096,2003.0,2002.7,9.98615]
[1742705913888,2.33787096,2003.0,2002.8,4.99289]
[1742705914057,1.51857096,2003.0,2002.8,4.99289]
[1742705915285,1.51857096,2003.1,2002.9,4.99276]
[1742705916088,1.51857096,2003.0,2002.9,4.99276]
[1742705916267,1.51857096,2003.0,2002.8,4.99297]
[1742705916789,1.51857096,2003.0,2002.9,4.99276]
[1742705919559,1.51857096,2003.0,2002.8,4.99297]
[1742705919751,1.51857096,2002.9,2002.8,4.99297]
[1742705920279,2.27277096,2003.0,2002.8,4.99297]
[1742705925288,1.51857096,2002.9,2002.7,4.99325]
[1742705927726,1.51857096,2002.9,2002.7,9.98631]
[1742705929596,2.27277096,2003.0,2002.8,4.993]
[1742705938804,1.51857096,2002.9,2002.8,4.993]
[1742705940403,1.51857096,2002.9,2002.7,9.98618]
[1742705940701,1.51857096,2002.9,2002.7,4.99306]
[1742705948722,1.51857096,2002.9,2002.7,9.98611]
[1742705948912,1.51857096,2003.1,2002.9,4.99264]
[1742705950823,1.51857096,2003.0,2002.9,4.99264]
[1742705955244,2.31967096,2003.1,2002.9,4.99264]
[1742705955420,1.51857096,2003.0,2002.9,4.99264]
[1742705964444,2.31967096,2003.1,2002.9,4.99264]
[1742705966650,2.31967096,2003.1,2002.8,4.99297]
[1742705966942,2.31967096,2003.1,2002.8,9.98585]
[1742705967146,1.51857096,2003.0,2002.8,4.99288]
[1742705967717,1.51857096,2003.0,2002.7,4.99322]
[1742705967918,1.51857096,2002.9,2002.7,4.99322]
[1742705976554,0.8011,2003.1,2002.7,9.98628]
[1742705976856,1.51857096,2003.0,2002.7,9.98628]
[1742705977257,1.51857096,2003.0,2002.8,4.99293]
[1742705977781,1.51857096,2003.0,2002.8,5.02973]
[1742705978451,1.51857096,2003.0,2002.8,4.99293]
[1742705978657,2.34117096,2003.1,2002.8,4.99293]
[1742705979453,2.34117096,2003.1,2002.8,9.98575]
[1742705981361,2.34117096,2003.1,2002.6,31.42708]
[1742705981557,1.51857096,2003.1,2002.8,0.0368]
[1742705981764,1.51857096,2003.1,2002.9,4.99273]
[1742705984062,1.51857096,2003.1,2002.8,5.02976]
[1742705989472,1.51857096,2003.0,2002.8,4.99296]
[1742705993580,1.02224599,2003.2,2002.8,5.02965]
[1742705993871,2.54081695,2003.2,2002.9,4.99264]
[1742705994044,1.51857096,2003.1,2002.9,4.99264]
[1742705995059,2.33017096,2003.1,2002.9,4.99264]
[1742705997084,2.33017096,2003.1,2002.8,9.98572]
[1742705997447,2.33017096,2003.1,2002.8,4.99285]
[1742706003579,0.8116,2003.1,2002.8,4.99285]
[1742706004858,0.8116,2003.1,2002.9,4.99273]
[1742706005484,0.8116,2003.1,2002.8,4.99285]
[1742706007684,7.53288695,2003.2,2002.8,5.02965]
[1742706010888,2.54081695,2003.2,2002.8,5.02961]
[1742706011090,2.54081695,2003.2,2002.9,4.99273]
[1742706014818,2.54081695,2003.2,2002.8,5.02961]
[1742706015314,7.53285695,2003.2,2002.8,5.02961]
[1742706015470,1.51857096,2003.1,2002.8,5.02961]
[1742706015989,2.28497096,2003.1,2002.8,4.99281]
[1742706018691,0.7664,2003.1,2002.8,4.99281]
[1742706018899,2.28497096,2003.1,2002.8,4.99281]
[1742706020086,1.51857096,2003.0,2002.7,4.99325]
[1742706020478,1.51857096,2003.0,2002.8,4.993]
[1742706021693,1.51857096,2003.0,2002.7,4.99325]
[1742706023598,5.75875,2003.1,2002.6,31.4283]
[1742706023599,8.79655192,2002.8,2002.6,26.398]
[1742706023803,7.27822096,2002.7,2002.6,26.398]
[1742706026074,2.28497096,2002.7,2002.6,26.398]
[1742706026273,1.51857096,2002.7,2002.6,26.398]
[1742706026885,1.51857096,2002.7,2002.4,4.99389]
[1742706027085,1.51857096,2002.6,2002.4,4.99389]
[1742706029417,1.51857096,2002.6,2002.5,4.99375]
[1742706029580,1.51857096,2002.8,2002.6,4.9935]